Cogmind - Beta 11.1 --- EXPLORER MODE // 2022.12.02 @ 09:51:11 Player: art-hropod Result: Destroyed by P-80 Master with Gamma Rifle Performance ------------- Evolutions (8) 4000 Regions Visited (13) 2600 Robots Destroyed (120) 600 Value Destroyed (3203) 3203 Prototype IDs (7) 140 Alien Tech Used (0) 0 Bonus (75) 75 TOTAL SCORE: 10618 Bonus ------- High Alert Combat Kills 75 Cogmind --------- Core Integrity 0/1450 Matter 166/300 Energy 98/100 System Corruption 5% Temperature Cool (61) Movement Core (50) Location -2/Research Parts ------- > --- POWER (3) -------- (None) > --- PROPULSION (8) --- (None) > --- UTILITY (11) ----- Advanced Visual Processing Unit Advanced Signal Interpreter Improved Hacking Suite > --- WEAPON (2) ------- (None) > --- INVENTORY (5) ---- Light Fission Core Micro Antimatter Reactor Peak State ------------ > --- POWER ------------ Light Fission Core Improved Fusion Compressor Micro Antimatter Reactor > --- PROPULSION ------- Field Propulsion Drive Impulse Thruster Impulse Thruster Impulse Thruster Q-thruster Cooled Impulse Thruster Impulse Thruster Array > --- UTILITY ---------- Advanced Cryofiber Web Advanced Cooling System Structural Scanner Visual Processing Unit Advanced Visual Processing Unit Advanced Sensor Array Advanced Signal Interpreter Advanced Transmission Jammer Improved Hacking Suite Experimental Hacking Suite Corruption Screen > --- WEAPON ----------- Phase Gun KE Penetrator > --- INVENTORY -------- Micro Antimatter Reactor Impulse Thruster Railgun Gauss Cannon Heavy Shock Bomb Launcher [Rating: 149] Favorites ----------- Power Ion Engine Engine Ion Engine Power Core Fusion Compressor Reactor Micro Antimatter Reactor Propulsion Aluminum Leg Treads Light Treads Leg Aluminum Leg Flight Unit Impulse Thruster Utility Medium Storage Unit Device Sensor Array Storage Medium Storage Unit Processor Signal Interpreter Hackware Improved Hacking Suite Protection Light Armor Plating Weapon Minigun Energy Gun Wave Gun Ballistic Gun Minigun Ballistic Cannon Gauss Cannon Launcher Rocket Array Build | -11 -10 -10 -9 -9 -9 -8 -8 -7 -6 -5 -4 -3 -2 ------- Run | Scr Mat Min Mat Min Exi Min Mat Fac Fac Fac Fac Res Res Slots Evolved 17 | . 1 . 2 . . . 2 2 2 2 2 2 2 Power 2 | . . . . . . . 1 . . . . 1 . Propulsion 6 | . 1 . 1 . . . 1 . . 1 1 . 1 Utility 9 | . . . 1 . . . . 2 2 1 1 1 1 Weapon . | . . . . . . . . . . . . . . Parts Attached 125 | 8 2 4 27 1 1 . 11 9 15 7 11 8 21 Power 23 | 1 . 1 3 1 . . 2 1 5 . 2 3 4 Engine 14 | 1 . 1 3 1 . . 2 1 2 . 2 . 1 Core 7 | . . . . . . . . . 3 . . 2 2 Reactor 2 | . . . . . . . . . . . . 1 1 Propulsion 47 | 2 1 3 13 . 1 . 6 5 3 2 3 2 6 Treads 1 | . 1 . . . . . . . . . . . . Leg 24 | 2 . 3 12 . 1 . 5 . . . . . 1 Wheel . | . . . . . . . . . . . . . . Hover . | . . . . . . . . . . . . . . Flight 22 | . . . 1 . . . 1 5 3 2 3 2 5 Utility 27 | 3 . . 2 . . . 1 3 5 3 4 2 4 Device 13 | . . . 1 . . . 1 1 3 1 2 . 4 Storage 1 | 1 . . . . . . . . . . . . . Processor 9 | 1 . . 1 . . . . 1 2 2 1 1 . Hackware 3 | . . . . . . . . 1 . . 1 1 . Protection 1 | 1 . . . . . . . . . . . . . Artifact . | . . . . . . . . . . . . . . Weapon 28 | 2 1 . 9 . . . 2 . 2 2 2 1 7 Energy Gun 11 | . 1 . 4 . . . 1 . . 1 1 . 3 Energy Cannon . | . . . . . . . . . . . . . . Ballistic Gun 9 | 2 . . 4 . . . 1 . . . 1 1 . Ballistic Cannon 4 | . . . 1 . . . . . 1 . . . 2 Launcher 4 | . . . . . . . . . 1 1 . . 2 Special Weapon . | . . . . . . . . . . . . . . Impact Weapon . | . . . . . . . . . . . . . . Slashing Weapon . | . . . . . . . . . . . . . . Piercing Weapon . | . . . . . . . . . . . . . . Special Melee Weapon . | . . . . . . . . . . . . . . Unidentified Prototypes 7 | . . . 3 . . . 1 . 1 . . 2 . Parts Lost 37 | . . . 1 1 . . 2 1 6 1 . 1 24 Power 6 | . . . . 1 . . 1 1 . . . 1 2 Propulsion 13 | . . . . . . . . . 3 . . . 10 Utility 10 | . . . . . . . . . 2 1 . . 7 Weapon 8 | . . . 1 . . . 1 . 1 . . . 5 Highest Loss Streak 22 | . . . 1 1 . . 2 1 6 1 . 1 22 To Critical Strikes 1 | . . . . . . . . . . . . . 1 Average Slot Usage (%) 94 | . 100 100 98 99 100 100 98 97 91 89 93 94 66 Engine 8 | . 12 12 9 9 10 10 15 13 1 . 4 1 . Core 2 | . . . . . . . . . 10 11 5 8 4 Leg 25 | . 25 36 39 40 40 40 40 . . . . . . Flight 8 | . . . . . . . . 34 29 26 30 27 16 Device 10 | . . . 10 10 10 10 8 13 16 14 18 18 12 Storage 6 | . 12 12 10 10 10 10 8 . . . . . . Processor 12 | . 12 12 10 10 10 10 8 13 18 22 20 21 14 Hackware 2 | . . . . . . . . 6 6 4 5 5 7 Energy Gun 4 | . 1 12 8 . . . 4 . . 3 5 1 1 Ballistic Gun 10 | . 23 12 10 20 20 20 11 14 6 . 4 6 2 Naked Turns . | . . . . . . . . . . . . . . Heaviest Build 40 | 20 18 18 24 22 20 20 25 20 24 27 27 40 39 Greatest Support 69 | 20 20 30 40 40 40 40 69 21 26 36 45 48 59 Greatest Overweight (x) 1 | . . . 1 . . . . . . . . . . Average Overweight (x) . | . . . . . . . . . . . . . . Largest Inventory Capacity 10 | 10 10 10 10 10 10 10 10 10 5 5 5 5 5 Average Capacity 8 | 9 10 10 10 10 10 10 10 5 5 5 5 5 5 Most Carried 10 | 7 10 10 10 10 10 10 10 10 5 5 5 5 5 Average Carried 7 | 3 8 9 9 9 10 10 9 3 4 4 4 4 3 Final Capacity 10 | 10 10 10 10 10 10 10 10 5 5 5 5 5 5 Final Carried 10 | 7 10 10 10 10 10 10 10 5 3 5 5 5 2 Class Distribution -------------------- 39% | Scavenger-Mutant 31% | Hacker-Mutant 28% | Hacker-Scout Dominant Class ---------------- Hacker-Mutant | -10/Materials Hacker-Mutant | -10/Mines Scavenger-Mutant | -9/Materials Scavenger-Mutant | -9/Mines Scavenger-Mutant | -9/Exiles Scavenger-Mutant | -8/Mines Hacker-Mutant | -8/Materials Hacker-Scout | -7/Factory Hacker-Scout | -6/Factory Hacker-Scout | -5/Factory Hacker-Scout | -4/Factory Hacker-Scout | -3/Research Hacker-Mutant | -2/Research Resources | -11 -10 -10 -9 -9 -9 -8 -8 -7 -6 -5 -4 -3 -2 ----------- Run | Scr Mat Min Mat Min Exi Min Mat Fac Fac Fac Fac Res Res Matter Collected 3354 | 149 169 77 406 62 34 17 346 129 200 306 508 301 650 Remotely . | . . . . . . . . . . . . . . Salvage Created 4183 | . 128 336 1249 99 34 32 717 182 189 180 376 179 482 Parts 289 | . 8 23 81 13 1 3 38 8 12 18 27 10 47 Haulers Intercepted 6 | . 2 . 3 . . . . . . 1 . . . Recyclers Shooed 1 | . . . . . . . . . . . . 1 . Parts Field Recycled . | . . . . . . . . . . . . . . Retrieved Matter . | . . . . . . . . . . . . . . Parts Self-Destructed . | . . . . . . . . . . . . . . Prevented . | . . . . . . . . . . . . . . Kills | -11 -10 -10 -9 -9 -9 -8 -8 -7 -6 -5 -4 -3 -2 ------- Run | Scr Mat Min Mat Min Exi Min Mat Fac Fac Fac Fac Res Res Combat Hostiles Destroyed 64 | . 2 6 22 3 1 2 10 4 3 3 . 2 6 Guns 55 | . 2 5 21 3 1 2 9 4 1 3 . 2 2 Cannons 1 | . . . . . . . . . 1 . . . . AOE 7 | . . 1 1 . . . . . 1 . . . 4 Classes Destroyed 14 | . 2 3 6 . . . . . 2 . . . 1 Worker 15 | . . . 1 . . . . . 1 . 6 . 7 Builder 8 | . . 1 . . . . 1 . 2 1 2 1 . Tunneler 5 | . . 1 . 3 . . . . . . . 1 . Hauler 6 | . 2 . 3 . . . . . . 1 . . . Recycler 1 | . . . 1 . . . . . . . . . . Mechanic 4 | . . . . . . . . . 1 1 1 . 1 Operator 5 | . . . 3 . . . 1 . . . . . 1 Watcher 12 | . . . 3 . . . 4 . 1 . 3 1 . Swarmer 21 | . 2 . 5 3 . 2 . 1 . 3 . 2 3 Grunt 30 | . . 6 11 . 1 . 9 3 . . . . . Duelist 1 | . . . 1 . . . . . . . . . . Sentry 8 | . . . 5 . . . 1 . 2 . . . . Hunter 1 | . . . . . . . . . 1 . . . . Programmer 3 | . . . . . . . . . . . . . 3 Best Kill Streak 9 | . 3 3 9 3 1 2 7 4 6 3 3 3 5 Combat Bots Only 7 | . 2 3 7 3 1 2 5 4 3 3 . 2 4 Max Kills in Single Turn 3 | . 1 1 2 1 1 2 1 1 3 1 1 1 3 Gunslinging 1 | . . . . . . 1 . . . . . . . Exploded 3 | . . 1 1 . . . . . 1 . . . 3 Melee . | . . . . . . . . . . . . . . Uniques/NPCs Destroyed . | . . . . . . . . . . . . . . Combat | -11 -10 -10 -9 -9 -9 -8 -8 -7 -6 -5 -4 -3 -2 -------- Run | Scr Mat Min Mat Min Exi Min Mat Fac Fac Fac Fac Res Res Damage Taken 6228 | . 76 145 822 68 . 16 505 172 360 141 239 228 3456 Core 1742 | . 17 8 27 10 . 3 46 31 42 40 43 16 1459 Absorbed by Shields . | . . . . . . . . . . . . . . Core Remaining (%) 94 | 100 . 90 . . . 90 91 95 95 96 96 98 . Volleys Fired 276 | . 17 21 76 12 2 2 41 12 11 12 28 13 29 Largest 2 | . 2 2 2 2 2 2 2 2 2 2 2 2 2 Hottest 169 | . 40 60 105 50 50 50 80 50 73 129 169 114 136 Shots Fired 513 | . 34 42 143 24 4 4 81 24 15 17 54 24 47 Gun 488 | . 34 42 143 24 4 4 81 24 10 9 54 24 35 Cannon 16 | . . . . . . . . . 2 8 . . 6 Launcher 9 | . . . . . . . . . 3 . . . 6 Special . | . . . . . . . . . . . . . . Kinetic 309 | . 34 21 62 24 4 4 46 24 12 8 23 21 26 Thermal 104 | . . . 46 . . . . . . 9 31 3 15 Explosive 3 | . . . . . . . . . 3 . . . . Electromagnetic 97 | . . 21 35 . . . 35 . . . . . 6 Robot Hit Streak 28 | . 7 23 24 6 1 3 22 28 12 9 10 10 12 Robot Miss Streak 3 | . 1 1 2 2 1 1 2 2 1 1 2 3 2 Penetration Max 1 | . . . . . . . . . . . 1 1 1 Secondary Targets 16 | . 1 . 8 2 . 1 1 1 . . 1 1 . Max Gunslinging Chain 1 | . 1 . 1 1 . 1 1 1 . . 1 1 . Shots Hit Robots 398 | . 26 40 115 16 2 3 68 20 12 11 40 15 30 Core Hits 215 | . 9 16 55 6 1 2 29 8 25 7 19 9 29 Critical Kills 1 | . . . 1 . . . . . . . . . . Critical Parts Destroyed 2 | . . . . . . . 1 . . . 1 . . Critical Strikes 10 | . . 1 2 . . . 3 . . 1 3 . . Burn 3 | . . . 1 . . . . . . . 2 . . Destroy 3 | . . . 1 . . . 1 . . . 1 . . Blast 1 | . . . . . . . . . . 1 . . . Corrupt 3 | . . 1 . . . . 2 . . . . . . Melee Attacks . | . . . . . . . . . . . . . . Impact . | . . . . . . . . . . . . . . Slashing . | . . . . . . . . . . . . . . Piercing . | . . . . . . . . . . . . . . Sneak Attacks . | . . . . . . . . . . . . . . Combat Hostiles . | . . . . . . . . . . . . . . Follow-up Attacks . | . . . . . . . . . . . . . . Damage Inflicted 8314 | . 214 460 1686 258 34 53 1463 367 665 301 994 391 1428 Guns 6697 | . 214 418 1665 258 34 53 1379 367 143 141 994 391 640 Cannons 367 | . . . . . . . . . 59 160 . . 148 Explosions 1245 | . . 42 21 . . . 84 . 463 . . . 635 Melee . | . . . . . . . . . . . . . . Ramming 5 | . . . . . . . . . . . . . 5 Kinetic 3748 | . 214 160 520 258 34 53 639 367 202 160 347 342 452 Thermal 2429 | . . 42 641 . . . 84 . 86 141 647 49 739 Explosive 377 | . . . . . . . . . 377 . . . . Electromagnetic 1755 | . . 258 525 . . . 740 . . . . . 232 Impact . | . . . . . . . . . . . . . . Slashing . | . . . . . . . . . . . . . . Piercing . | . . . . . . . . . . . . . . Highest Corruption 5 | . . . . . . . . . . . . . 5 Average Corruption 3 | . . . . . . . . . . . . . 3 Corruption Purged . | . . . . . . . . . . . . . . Corruption Blocked 8 | . . . . . . . . . . . . . 8 Effects 3 | . . . . . . . . . . . . . 3 Matter Fused 2 | . . . . . . . . . . . . . 2 Heat Flow Errors 1 | . . . . . . . . . . . . . 1 Overload Shots . | . . . . . . . . . . . . . . Overflow Damage 26 | . . . . . . . 24 . 2 . . . . Projectiles . | . . . . . . . . . . . . . . Explosions 26 | . . . . . . . 24 . 2 . . . . Melee . | . . . . . . . . . . . . . . Knockbacks 4 | . . . . . . . . . . 3 . . 1 Impact . | . . . . . . . . . . . . . . Kinetic 3 | . . . . . . . . . . 2 . . 1 Secondary 1 | . . . . . . . . . . 1 . . . Self-Inflicted Damage 68 | . . 14 . . . . . . 11 . . . 43 Shots 6 | . . 1 . . . . . . 2 . . . 3 Rammed 1 | . . . . . . . . . . . . . 1 Targets Rammed 2 | . . . . . . . . . . . . . 2 Kicked 1 | . . . . . . . . . . . . . 1 Crushed . | . . . . . . . . . . . . . . Highest Temperature 324 | . . 139 260 8 4 4 146 14 29 135 324 20 179 Average Temperature 55 | . . 47 62 3 3 3 35 3 12 42 114 12 58 Received Heat Transfer 1839 | . . 117 531 . . . 441 171 126 9 21 9 414 Siege Activations . | . . . . . . . . . . . . . . Robots Corrupted 1 | . . . . . . . 1 . . . . . . Combat Hostiles 1 | . . . . . . . 1 . . . . . . Parts Fried 6 | . . 1 2 . . . 3 . . . . . . Impact Corruptions . | . . . . . . . . . . . . . . Robots Melted . | . . . . . . . . . . . . . . Combat Hostiles . | . . . . . . . . . . . . . . Parts Melted 7 | . . . 4 . . . . . . 1 1 . 1 Heat Transferred 4030 | . . 50 1556 . . . 100 . 50 222 1147 74 831 Parts Sabotaged . | . . . . . . . . . . . . . . Parts Stolen . | . . . . . . . . . . . . . . Parts Stripped . | . . . . . . . . . . . . . . Power Chain Reactions 6 | . . 1 1 . . . 1 . . . . . 3 Missiles Intercepted . | . . . . . . . . . . . . . . Alert | -11 -10 -10 -9 -9 -9 -8 -8 -7 -6 -5 -4 -3 -2 ------- Run | Scr Mat Min Mat Min Exi Min Mat Fac Fac Fac Fac Res Res Peak Influence 465 | . 93 237 419 101 . 57 465 156 277 360 446 333 413 Initial 173 | . . 25 64 26 . . 15 59 55 97 135 173 140 Average 154 | . 44 160 175 54 . 33 186 92 129 139 199 238 212 Maximum Alert Level 2 | . . 1 2 . . . 2 . 1 1 2 1 2 Low Security (%) 69 | 100 100 57 59 100 . 100 68 100 74 84 62 36 59 Level 1 28 | . . 42 38 . . . 24 . 25 15 34 63 39 Level 2 1 | . . . 1 . . . 6 . . . 2 . . Level 3 . | . . . . . . . . . . . . . . Level 4 . | . . . . . . . . . . . . . . Level 5 . | . . . . . . . . . . . . . . High Security . | . . . . . . . . . . . . . . Max Security . | . . . . . . . . . . . . . . Squads Dispatched 14 | . . . 2 . . . 3 1 1 1 1 2 3 Investigation 3 | . . . . . . . 1 1 . 1 . . . Extermination . | . . . . . . . . . . . . . . Reinforcement 10 | . . . 2 . . . 2 . . . 1 2 3 Assault 1 | . . . . . . . . . 1 . . . . Garrison . | . . . . . . . . . . . . . . Intercept . | . . . . . . . . . . . . . . Searches Triggered . | . . . . . . . . . . . . . . Construction Impeded 1 | . . . . . . . . . . . . 1 . Haulers Reinforced . | . . . . . . . . . . . . . . Active Scanning Responses . | . . . . . . . . . . . . . . Cargo Convoy Interrupts . | . . . . . . . . . . . . . . Stealth | -11 -10 -10 -9 -9 -9 -8 -8 -7 -6 -5 -4 -3 -2 --------- Run | Scr Mat Min Mat Min Exi Min Mat Fac Fac Fac Fac Res Res Distress Signals 11 | . 1 . 5 . . . . . . 1 . 1 3 Communications Jammed 2 | . . . . . . . . . . . . . 2 Distress Signals . | . . . . . . . . . . . . . . Times Spotted 187 | . 3 7 39 3 . 2 24 5 7 15 28 10 44 Peak Tracking Total 16 | . 2 4 4 3 . 2 5 3 4 6 13 5 16 Tactical Retreats 24 | . . 2 . . . . 1 1 . 4 5 1 10 Traps | -11 -10 -10 -9 -9 -9 -8 -8 -7 -6 -5 -4 -3 -2 ------- Run | Scr Mat Min Mat Min Exi Min Mat Fac Fac Fac Fac Res Res Traps Triggered 6 | . 2 . 1 . . . . 1 . . 1 1 . Indirectly . | . . . . . . . . . . . . . . Trap Hack Attempts . | . . . . . . . . . . . . . . Triggered . | . . . . . . . . . . . . . . Disarmed . | . . . . . . . . . . . . . . Reprogrammed . | . . . . . . . . . . . . . . Reused . | . . . . . . . . . . . . . . Traps Extracted . | . . . . . . . . . . . . . . Installed . | . . . . . . . . . . . . . . Triggered 1 | . . . . . . . 1 . . . . . . Machines | -11 -10 -10 -9 -9 -9 -8 -8 -7 -6 -5 -4 -3 -2 ---------- Run | Scr Mat Min Mat Min Exi Min Mat Fac Fac Fac Fac Res Res Machines Disabled 15 | . . 1 2 . . . 1 . 6 . 3 . 2 Max in Single Turn 6 | . . 1 1 . . . 1 . 6 . 1 . 1 Garrison Access 1 | . . . . . . . . . 1 . . . . Machines Sabotaged . | . . . . . . . . . . . . . . Garrisons Compromised . | . . . . . . . . . . . . . . Overloaded Fab Kills . | . . . . . . . . . . . . . . Hacking | -11 -10 -10 -9 -9 -9 -8 -8 -7 -6 -5 -4 -3 -2 --------- Run | Scr Mat Min Mat Min Exi Min Mat Fac Fac Fac Fac Res Res Machines Accessed 18 | . 2 . 4 . . 1 2 1 1 1 2 1 3 Terminals 18 | . 2 . 4 . . 1 2 1 1 1 2 1 3 Fabricators . | . . . . . . . . . . . . . . Repair Stations . | . . . . . . . . . . . . . . Recycling Units . | . . . . . . . . . . . . . . Scanalyzers . | . . . . . . . . . . . . . . Garrison Access . | . . . . . . . . . . . . . . Total Hacks 39 | . 7 . 14 . . 1 4 2 1 2 3 2 3 Successful 28 | . 5 . 10 . . 1 3 1 1 . 2 2 3 Failed 11 | . 2 . 4 . . . 1 1 . 2 1 . . Catastrophic 3 | . . . . . . . . 1 . 2 . . . Database Lockouts . | . . . . . . . . . . . . . . Manual 35 | . 6 . 10 . 1 1 4 3 1 2 3 2 2 Terminals 39 | . 7 . 14 . . 1 4 2 1 2 3 2 3 Fabricators . | . . . . . . . . . . . . . . Repair Stations . | . . . . . . . . . . . . . . Recycling Units . | . . . . . . . . . . . . . . Scanalyzers . | . . . . . . . . . . . . . . Garrison Access . | . . . . . . . . . . . . . . Terminal Hacks 18 | . 3 . 6 . . 1 1 . 1 . 2 1 3 Level Access Points 5 | . . . . . . 1 . . 1 . 1 1 1 Branch Access Points 2 | . 1 . 1 . . . . . . . . . . Alert Level 2 | . . . 2 . . . . . . . . . . Unreport Threat 3 | . . . 1 . . . . . . . 1 . 1 Maintenance Status 1 | . 1 . . . . . . . . . . . . Transport Status 1 | . 1 . . . . . . . . . . . . Recall Investigation 1 | . . . . . . . 1 . . . . . . Zone Layout 3 | . . . 2 . . . . . . . . . 1 Fabricator Hacks . | . . . . . . . . . . . . . . Repair Station Hacks . | . . . . . . . . . . . . . . Recycling Unit Hacks . | . . . . . . . . . . . . . . Scanalyzer . | . . . . . . . . . . . . . . Garrison Access Hacks . | . . . . . . . . . . . . . . Unauthorized Hacks 9 | . 2 . 3 . . . 2 1 . . . 1 . Terminals 9 | . 2 . 3 . . . 2 1 . . . 1 . Botnet 6 | . 1 . 2 . . . 1 1 . . . 1 . Operators 3 | . 1 . 1 . . . 1 . . . . . . Fabricators . | . . . . . . . . . . . . . . Repair Stations . | . . . . . . . . . . . . . . Recycling Units . | . . . . . . . . . . . . . . Scanalyzers . | . . . . . . . . . . . . . . Garrison Access . | . . . . . . . . . . . . . . Data Cores Recovered 1 | . . . . . . . . . . . . . 1 Used 1 | . . . . . . . . . . . . . 1 Hacking Detections 12 | . 2 . 3 . . . 1 1 . 1 1 1 2 Full Trace Events 5 | . 2 . . . . . 1 1 . 1 . . . Feedback Events . | . . . . . . . . . . . . . . Feedback Blocked . | . . . . . . . . . . . . . . Robot Schematics Acquired . | . . . . . . . . . . . . . . Robots Built . | . . . . . . . . . . . . . . Authchips . | . . . . . . . . . . . . . . Time . | . . . . . . . . . . . . . . Total Robot Build Rating . | . . . . . . . . . . . . . . Part Schematics Acquired . | . . . . . . . . . . . . . . Parts Built . | . . . . . . . . . . . . . . Authchips . | . . . . . . . . . . . . . . Time . | . . . . . . . . . . . . . . Total Part Build Rating . | . . . . . . . . . . . . . . Parts Repaired . | . . . . . . . . . . . . . . Time . | . . . . . . . . . . . . . . Parts Recycled . | . . . . . . . . . . . . . . Recycled Matter . | . . . . . . . . . . . . . . Retrieved Matter . | . . . . . . . . . . . . . . Retrieved Components . | . . . . . . . . . . . . . . Parts Scanalyzed . | . . . . . . . . . . . . . . Part Schematics Acquired . | . . . . . . . . . . . . . . Parts Damaged . | . . . . . . . . . . . . . . Bothacking | -11 -10 -10 -9 -9 -9 -8 -8 -7 -6 -5 -4 -3 -2 ------------ Run | Scr Mat Min Mat Min Exi Min Mat Fac Fac Fac Fac Res Res Used RIF Installer . | . . . . . . . . . . . . . . Robots Hacked . | . . . . . . . . . . . . . . Non-combat . | . . . . . . . . . . . . . . Combat . | . . . . . . . . . . . . . . Robot Hacks Applied . | . . . . . . . . . . . . . . Relay Couplers Released 1 | . . . . . . . . . 1 . . . . Machine Destruction 1 | . . . . . . . . . 1 . . . . Fabnet Peak Effective % . | . . . . . . . . . . . . . . Robots Rewired . | . . . . . . . . . . . . . . Allies Hacked . | . . . . . . . . . . . . . . Hacks Repelled . | . . . . . . . . . . . . . . Allies | -11 -10 -10 -9 -9 -9 -8 -8 -7 -6 -5 -4 -3 -2 -------- Run | Scr Mat Min Mat Min Exi Min Mat Fac Fac Fac Fac Res Res Total Allies . | . . . . . . . . . . . . . . Largest Group . | . . . . . . . . . . . . . . Highest-Rated Group . | . . . . . . . . . . . . . . Highest-Rated Ally . | . . . . . . . . . . . . . . Total Orders . | . . . . . . . . . . . . . . Ally Attacks . | . . . . . . . . . . . . . . Total Damage . | . . . . . . . . . . . . . . Kills . | . . . . . . . . . . . . . . Allies Corrupted . | . . . . . . . . . . . . . . Allies Melted . | . . . . . . . . . . . . . . Intel | -11 -10 -10 -9 -9 -9 -8 -8 -7 -6 -5 -4 -3 -2 ------- Run | Scr Mat Min Mat Min Exi Min Mat Fac Fac Fac Fac Res Res Robot Analysis Total . | . . . . . . . . . . . . . . Derelict Logs Recovered 1 | . . 1 . . . . . . . . . . . Drone Launches . | . . . . . . . . . . . . . . Drone Recoveries . | . . . . . . . . . . . . . . Exploration | -11 -10 -10 -9 -9 -9 -8 -8 -7 -6 -5 -4 -3 -2 ------------- Run | Scr Mat Min Mat Min Exi Min Mat Fac Fac Fac Fac Res Res Turns Passed 4602 | 95 223 363 1096 240 262 218 545 113 169 226 349 213 490 Spaces Moved 5602 | 64 137 245 686 173 213 131 343 249 443 649 845 355 1069 Core 197 | 5 . . . . . . . . . . . . 192 Treads . | . . . . . . . . . . . . . . Legs 2051 | 59 137 245 686 173 213 131 343 . . . . . 64 Wheels . | . . . . . . . . . . . . . . Hover . | . . . . . . . . . . . . . . Flight 3354 | . . . . . . . . 249 443 649 845 355 813 Fastest Speed 21 | 50 120 120 120 120 120 120 114 24 24 27 25 25 21 Average Speed 60 | 114 120 120 120 120 120 120 116 24 25 27 25 25 34 Slowest Speed 190 | 120 120 120 190 120 120 120 120 24 29 29 25 25 120 Overloaded Moves . | . . . . . . . . . . . . . . Propulsion Burnouts . | . . . . . . . . . . . . . . Robots Hopped 4 | . . . . . . . . . . . 1 2 1 Cave-ins Triggered . | . . . . . . . . . . . . . . Exploration Rate (%) 29 | 5 33 44 50 37 60 46 35 7 14 16 22 12 36 Regions Visited 13 Branch Regions 4 Pre-discovered Areas 1 | . . 1 . . . . . . . . . . . Known Exits Taken 13 | 1 1 1 1 1 1 1 1 1 1 1 1 1 . Unknown Exits Taken . | . . . . . . . . . . . . . . Scrap Searched . | . . . . . . . . . . . . . . Spaces Dug . | . . . . . . . . . . . . . . Terrain Destroyed 125 | . . 8 4 . . . 2 . 71 3 5 1 31 Melee . | . . . . . . . . . . . . . . Projectile 10 | . . . . . . . . . . 3 5 1 1 AOE 115 | . . 8 4 . . . 2 . 71 . . . 30 Terrain Rammed . | . . . . . . . . . . . . . . Walls Destroyed . | . . . . . . . . . . . . . . Machines Disabled . | . . . . . . . . . . . . . . Actions | -11 -10 -10 -9 -9 -9 -8 -8 -7 -6 -5 -4 -3 -2 --------- Run | Scr Mat Min Mat Min Exi Min Mat Fac Fac Fac Fac Res Res Total 6345 | 85 168 278 825 186 215 189 418 286 484 679 931 453 1148 Wait 189 | . 8 . . . . 55 7 3 . 2 37 72 5 Move 5581 | 63 136 244 685 172 212 130 342 248 442 648 842 350 1067 Hop 4 | . . . . . . . . . . . 1 2 1 Pick Up 87 | 14 4 3 15 1 . 1 9 6 8 8 3 4 11 Fast Attach 24 | . 1 . 6 . . . 2 . 2 1 5 3 4 Attach 64 | 7 1 . 9 1 . . 5 9 10 4 2 4 12 Detach 4 | . . . 1 . . . . . . . . . 3 Swap 37 | 1 . 4 12 . 1 . 4 . 3 2 4 1 5 Drop 74 | . 1 6 21 . . 1 8 8 8 2 6 4 9 Fire 276 | . 17 21 76 12 2 2 41 12 11 12 28 13 29 Melee . | . . . . . . . . . . . . . . Ram 1 | . . . . . . . . . . . . . 1 Kick 1 | . . . . . . . . . . . . . 1 Crush . | . . . . . . . . . . . . . . Escape Stasis 3 | . . . . . . . . . . . 3 . . Rewire . | . . . . . . . . . . . . . . Trap . | . . . . . . . . . . . . . . Miscellaneous . | . . . . . . . . . . . . . . Route ------- -11/Scrapyard -10/Materials (discovered 2 exits: *Min x2) -10/Mines -9/Materials (discovered 4 exits: *Mat x3 / *Min) -9/Mines -9/Exiles -8/Mines (discovered 2 exits: *Mat x2) -8/Materials (discovered 2 exits: *Fac / *Sto) -7/Factory (discovered 2 exits: *Fac / *Low) -6/Factory (discovered 4 exits: *Fac x4) -5/Factory (discovered 2 exits: *Fac / *Upp) -4/Factory (discovered 5 exits: *Res x4 / *Upp) -3/Research (discovered 3 exits: *Res x3) -2/Research (discovered 4 exits: Acc x3 / *Qua) History --------- Turn | Location | Event 2 | -11/Scrapyard | Met Revision 17 47 | -11/Scrapyard | Identified exit to Materials 47 | -11/Scrapyard | Discovered exit to Materials (range 14) 96 | -11/Scrapyard | Entered Materials 96 | -10/Materials | Evolved 1 slot: Propulsion x1 266 | -10/Materials | Identified exit to Mines 318 | -10/Materials | Build established: Hacker-Mutant 319 | -10/Materials | Entered Mines 649 | -10/Mines | Identified exit to Materials 649 | -10/Mines | Discovered exit to Materials (range 7) 667 | -10/Mines | Learned location of Mines (-8) 682 | -10/Mines | Entered Materials 682 | -9/Materials | Evolved 2 slots: Propulsion x1, Utility x1 693 | -9/Materials | Identified exit to Mines 1115 | -9/Materials | Build established: Scavenger-Mutant 1182 | -9/Materials | Destroyed 7 combat bots 1331 | -9/Materials | Identified exit to Materials 1331 | -9/Materials | Discovered exit to Materials (range 16) 1484 | -9/Materials | Discovered exit to Materials (range 16) 1589 | -9/Materials | Discovered exit to Materials (range 13) 1778 | -9/Materials | Entered Mines 2013 | -9/Mines | Deemed a non-threat by the Exiles lab entrance 2013 | -9/Mines | Identified exit to Exiles 2013 | -9/Mines | Discovered exit to Exiles (range 5) 2018 | -9/Mines | Entered Exiles 2018 | -9/Exiles | Found Exiles lab destroyed 2264 | -9/Exiles | Identified exit to Mines 2264 | -9/Exiles | Discovered exit to Mines (range 14) 2280 | -9/Exiles | Entered Mines 2498 | -8/Mines | Entered Materials 2498 | -8/Materials | Evolved 2 slots: Power x1, Propulsion x1 2604 | -8/Materials | Identified exit to Storage 2604 | -8/Materials | Discovered exit to Storage (range 11) 2664 | -8/Materials | Identified exit to Factory 2664 | -8/Materials | Discovered exit to Factory (range 14) 3043 | -8/Materials | Entered Factory 3043 | -7/Factory | Evolved 2 slots: Utility x2 3059 | -7/Factory | Identified exit to Lower Caves 3059 | -7/Factory | Discovered exit to Lower Caves (range 17) 3150 | -7/Factory | Identified exit to Factory 3150 | -7/Factory | Discovered exit to Factory (range 4) 3153 | -7/Factory | Found Prototype Launcher 3156 | -7/Factory | Entered another Factory area 3156 | -6/Factory | Evolved 2 slots: Utility x2 3187 | -6/Factory | Spotted B-75 Beast 3223 | -6/Factory | Identified exit to Factory 3274 | -6/Factory | Identified Rocket Array 3325 | -6/Factory | Entered another Factory area 3325 | -5/Factory | Evolved 2 slots: Propulsion x1, Utility x1 3335 | -5/Factory | Lost 6 parts (3n2u1w) 3342 | -5/Factory | Build established: Hacker-Scout 3536 | -5/Factory | Identified exit to Factory 3536 | -5/Factory | Discovered exit to Factory (range 9) 3543 | -5/Factory | Identified exit to Upper Caves 3543 | -5/Factory | Discovered exit to Upper Caves (range 17) 3551 | -5/Factory | Entered another Factory area 3551 | -4/Factory | Evolved 2 slots: Propulsion x1, Utility x1 3586 | -4/Factory | Identified exit to Research 3854 | -4/Factory | Identified exit to Upper Caves 3854 | -4/Factory | Discovered exit to Upper Caves (range 7) 3900 | -4/Factory | Entered Research 3900 | -3/Research | Evolved 2 slots: Power x1, Utility x1 3910 | -3/Research | Identified exit to Research 4062 | -3/Research | Found Prototype Hackware 4062 | -3/Research | Identified Exp. Hacking Suite 4113 | -3/Research | Entered another Research area 4113 | -2/Research | Evolved 2 slots: Propulsion x1, Utility x1 4199 | -2/Research | Identified exit to Access 4253 | -2/Research | Spotted B-90 Cyclops 4343 | -2/Research | Identified exit to Quarantine 4343 | -2/Research | Discovered exit to Quarantine (range 20) 4400 | -2/Research | Spotted B-90 Cyclops 4506 | -2/Research | Core integrity fell below 50% 4539 | -2/Research | Lost 22 parts (2p10n5u5w) 4574 | -2/Research | Spotted B-90 Cyclops 4587 | -2/Research | Spotted B-90 Cyclops 4592 | -2/Research | Core integrity fell below 20% 4603 | -2/Research | Destroyed by P-80 Master with Gamma Rifle Last Messages --------------- 04528_ W-44 Eye distress signal alerts nearby ally. 04542_ System corrupted: Matter fused (-7). 04542_ Exp. Hacking Suite destroyed. 04551_ U-05 Engineer destroyed. 04551_ K-01 Serf collects debris. 04551_ R-10 Processor collects Wheel. 04553_ K-01 Serf collects debris. 04554_ R-10 Processor collects Terrain Scanner. 04555_ K-01 Serf collects debris. 04555_ R-10 Processor collects Wheel. 04556_ K-01 Serf collects debris. 04558_ U-05 Engineer builds a Wall. 04569_ System corrupted: Matter fused (-5). 04571_ Slug penetrates Wall. 04573_ Slammed into R-10 Processor. 04573_ R-10 Processor distress signal alerts nearby ally. 04578_ U-05 Engineer builds a Wall. 04600_ System corrupted: Heat flow error (+181). 04600_ Visual Processing Unit destroyed. 04602_ Acquired 8 matter. Map ----- +----------------------------------------------------+ | #?????? #??????????????????????????????? | | #### #???? #??????????????????????????????? | | ???# #??"" #??????????????????????????????? | | ???# # """ #??????????????????????????????? | | ???# + #??????????????????????????????? | | ???# # #??????????????????????????????? | | #### #??########??????????????????????????????? | | #??####??????????????????????????????????? | | #####+#+####""#??????????????????????????????????? | | #???????????????????????????????????? | | #???????????????????????????????????? | | | #???????????????????????????????????? | | #???????????????????????????????????? | | ####????????????????????????????????? | | # #????????????????????????????????? | | ######"#####/# ###########+#????????????????????? | | ?????????# ??????????????????? | | ?????????# B ??????????????????? | | ?????????# uBB ??????????????????? | | ?????????# ???????????????????? | | ?????????# H !!! #########???????????????????? | | ?????????# u !!!k #???????????????????????????? | | ########## !! R ######################??????? | | u ????? | | pp R ????? | | ^ @ ????? | | """ ^ t R A ????? | | """ #;##;;############ #######????????? | | """ # #?????????????????????? | | """ # % #?????????????????????? | | """ / """ """ #?????????????????????? | | """ # """ """ #?????????????????????? | | """ / """ """ #?????????????????????? | | # #?????????????????????? | | "###+### #?????????????????????? | | # # """ """ #?????????????????????? | | """ # # """ """ #?????????????????????? | | """ + # """ """ #?????????????????????? | | """ # # #?????????????????????? | | """ # # #?????????????????????? | | """ # ##############?????????????????????? | | """ #"" #??????????????????????????????????? | | """ #"" * #??????????????????????????????????? | | #"Y #??????????????????????????????????? | | #"" #??????????????????????????????????? | | #"" #??????????????????????????????????? | | # #??????????????????????????????????? | | # #??????????????????????????????????? | | ###############??????????????????????????????????? | | ?????????????????????????????????????????????????? | +----------------------------------------------------+ Best States ------------- Heat Dissipation 94 Energy Generation 62 Energy Capacity 335 Matter Stores 300 Matter Capacity 300 Sight Range 20 Robot Scan Range 16 Terrain Scan Density 85 Jamming Range 16 Corruption Block 8 Armor Coverage 150 Resistance: KI 35 Resistance: TH 35 Resistance: EX 35 Resistance: EM 35 Resistance: I 35 Resistance: S 35 Resistance: P 35 Evasion (%) 75 Targeting Accuracy 5 Offensive Hacking 48 Item Schematics ----------------- None Robot Schematics ------------------ None Fabricated ------------ Nothing Alien Tech Used ----------------- None Achievements -------------- Can't Catch Me Dodgeball, But With Guns I Spy Challenges ------------ None Game ------ Seed DerelictLinkedBooster Manual? 0 Play Time 02:02:45 Cumulative 22.0 hours Start 2022.11.25 @ 08:32:10 End 2022.12.02 @ 09:51:11 Sessions 8 Manual Loads 0 Difficulty Explorer Special Mode None Game No. 29 Rogue 25 Adventurer 0 Explorer 4 Win Type - Total 0 Types 0/0/0/0/0/0/0/0/0 Lore% 13 Gallery% 26 Achievement% 20 Wizard Run 0 Options --------- ASCII 0 Keyboard 0 Movement Mouse Keybinds 0 Fullscreen 1 Font 32/SmallcapsGlow Map View 63x52 Tactical HUD 1 Map Filters NONE Filters NONE Steam X RUN: 4a2b4ca4-b110-4c3b-a4b9-f3c28798d941